bitfinex-derivatives/quotes_BTCF0:USTF0_20251219
["timestamp","ask_amount","ask_price","bid_price","bid_amount"]
[1766110417335,0.20617809,85330.0,85314.0,0.00588]
[1766110417738,0.0117269,85321.0,85314.0,0.00588]
[1766110418238,0.0117265,85324.0,85314.0,0.00588]
[1766110418439,0.00017581,85326.0,85314.0,0.00588]
[1766110418635,0.13733,85346.0,85316.0,0.20617809]
[1766110418835,0.00588,85345.0,85320.0,0.20617809]
[1766110419027,0.00588,85344.0,85321.0,0.00588]
[1766110419230,0.0117246,85338.0,85321.0,0.00588]
[1766110419634,0.01190041,85338.0,85321.0,0.01778261]
[1766110419943,0.00605581,85338.0,85321.0,0.01778261]
[1766110420142,0.00017581,85338.0,85321.0,0.00605581]
[1766110420349,0.20617809,85350.0,85330.0,0.0117256]
[1766110420550,0.00588,85349.0,85330.0,0.0117256]
[1766110420851,0.00588,85349.0,85331.0,0.00036]
[1766110421244,0.0117232,85348.0,85331.0,0.00036]
[1766110421741,0.0117235,85346.0,85331.0,0.00036]
[1766110424142,0.13865,85348.0,85331.0,0.0120853]
[1766110424342,0.0176033,85347.0,85331.0,0.0120853]
[1766110424644,0.0176033,85347.0,85331.0,0.00036]
[1766110424841,0.1562533,85347.0,85331.0,0.00036]
[1766110425041,0.00588,85346.0,85331.0,0.00036]
[1766110425243,0.14453,85346.0,85331.0,0.00036]
[1766110425639,0.0117236,85345.0,85331.0,0.00036]
[1766110425945,0.13865,85345.0,85331.0,0.00036]
[1766110426640,0.1503737,85344.0,85329.0,0.00588]
[1766110426844,0.13865,85344.0,85329.0,0.00588]
[1766110427853,0.13865,85344.0,85330.0,0.0117256]
[1766110428341,0.0117239,85343.0,85329.0,0.00588]
[1766110428549,0.13865,85325.0,85321.0,1e-08]
[1766110428942,0.14453,85330.0,85321.0,1e-08]
[1766110429442,0.00588,85330.0,85321.0,1e-08]
[1766110433847,0.13865,85345.0,85322.0,0.00588]
[1766110434040,0.0176037,85344.0,85326.0,0.0117261]
[1766110434241,0.0117237,85344.0,85326.0,0.0117261]
[1766110434451,0.00588,85343.0,85326.0,0.0117261]
[1766110434650,0.0117237,85344.0,85326.0,0.0117261]
[1766110434950,0.011724,85342.0,85326.0,0.0117261]
[1766110435250,0.011724,85342.0,85323.0,0.0117265]
[1766110437338,0.0117244,85339.0,85323.0,0.0117265]
[1766110438353,0.011724,85342.0,85323.0,0.0117265]
[1766110438552,0.150374,85342.0,85323.0,0.0117265]
[1766110438754,0.1503743,85340.0,85323.0,0.0117265]
[1766110439144,0.0117245,85338.0,85322.0,0.00588]
[1766110439752,0.13865,85340.0,85322.0,0.0176066]
[1766110439947,0.0117245,85339.0,85322.0,0.00588]
[1766110440143,0.13865,85340.0,85322.0,0.00588]
[1766110440751,0.011725,85335.0,85322.0,0.00588]
[1766110440955,0.0117255,85331.0,85322.0,0.00588]
[1766110441160,0.13865,85333.0,85322.0,0.00588]
[1766110441745,0.150376,85328.0,85322.0,0.00588]
[1766110441939,0.13865,85328.0,85321.0,1e-08]
[1766110442148,0.20624099,85332.0,85308.0,2.4747285]
[1766110442149,0.13865,85323.0,85308.0,2.463]
[1766110442339,0.0117284,85310.0,85300.0,0.20624099]
[1766110442544,0.13735,85315.0,85298.0,0.00822473]
[1766110442744,0.13735,85310.0,85298.0,0.00822473]
[1766110443145,0.13735,85309.0,85299.0,1.5]
[1766110443956,0.00011659,85313.0,85299.0,1.5]
[1766110444354,0.13746659,85313.0,85299.0,1.5]
[1766110445457,0.14334659,85313.0,85299.0,1.5117298]
[1766110446655,0.13746659,85313.0,85301.0,0.0117295]
[1766110446857,0.13746659,85313.0,85299.0,1.5]
[1766110447158,0.13746659,85313.0,85300.0,0.00588]
[1766110447644,0.00588,85312.0,85300.0,0.00588]
[1766110449259,0.14323,85312.0,85300.0,0.00588]
[1766110455365,0.0117287,85308.0,85300.0,0.00588]
[1766110455560,0.14032,85307.0,85301.0,0.00588]
[1766110456572,0.14032,85307.0,85302.0,1.5]
[1766110456958,0.14032,85307.0,85295.0,0.00017581]
[1766110457161,0.14032,85307.0,85296.0,0.00588]
[1766110458275,0.14032,85305.0,85296.0,0.00588]
[1766110458570,0.14032,85305.0,85297.0,1.5]
[1766110460770,0.14032,85305.0,85295.0,0.00588]
[1766110461470,0.1520491,85305.0,85295.0,0.00588]
[1766110461768,0.1520491,85305.0,85296.0,1.5]
[1766110461958,0.1520491,85305.0,85295.0,0.00588]
[1766110462359,0.14032,85305.0,85295.0,0.00588]
[1766110462873,0.14032,85305.0,85296.0,1.5]
[1766110466079,0.00098,85296.0,85295.0,0.00588]
[1766110466286,0.00098,85296.0,85293.0,0.00017581]
[1766110467574,0.00098,85296.0,85294.0,1.22]
[1766110467974,0.00098,85296.0,85293.0,0.00017581]
[1766110469363,0.00098,85296.0,85286.0,1.22]
[1766110470674,0.00588,85297.0,85286.0,1.22]
[1766110471580,0.00115,85296.0,85286.0,1.22]
[1766110472074,0.00588,85297.0,85286.0,1.22]
[1766110472075,0.00098,85294.0,85286.0,1.22]
[1766110472283,0.011731,85291.0,85286.0,1.22]
[1766110472479,0.011731,85291.0,85282.0,0.00605581]
[1766110473184,0.00588,85292.0,85282.0,0.00605581]
[1766110473577,0.00588,85292.0,85283.0,1.22]
[1766110474280,0.00588,85292.0,85284.0,0.13961]
[1766110475269,0.00017581,85295.0,85284.0,0.13961]
[1766110475469,0.00588,85294.0,85284.0,0.13961]
[1766110476676,0.00588,85294.0,85283.0,1.22]
[1766110476991,0.00588,85294.0,85282.0,0.00605581]
[1766110476992,0.00588,85294.0,85282.0,0.00017581]
[1766110477280,0.0117318,85285.0,85282.0,1e-08]
[1766110478380,0.0176114,85288.0,85282.0,1e-08]
[1766110478771,0.0117317,85286.0,85282.0,1e-08]
[1766110480285,0.00588,85288.0,85282.0,1e-08]
[1766110488580,0.00739,85288.0,85282.0,1e-08]
[1766110489285,0.00151,85287.0,85282.0,1e-08]
[1766110489486,0.00588,85288.0,85277.0,0.00588]
[1766110489487,0.0117318,85285.0,85277.0,0.00444478]
[1766110489677,0.0117318,85285.0,85274.0,0.00456]
[1766110489883,0.0117318,85285.0,85275.0,0.46]
[1766110490492,8.477e-05,85284.0,85275.0,0.46]
[1766110490692,0.0117321,85283.0,85275.0,0.46]
[1766110491295,0.0117324,85281.0,85271.0,0.00017581]
[1766110491496,0.0117324,85281.0,85271.0,0.00605581]
[1766110491890,0.0117324,85281.0,85272.0,0.46]
[1766110493004,0.0117326,85279.0,85272.0,0.46]
[1766110493504,0.0176122,85282.0,85272.0,0.46]
[1766110494605,0.00588,85282.0,85272.0,0.46]
[1766110498113,0.00588,85282.0,85273.0,0.14673]
[1766110498709,0.00588,85282.0,85274.0,0.60673]
[1766110499711,0.00588,85282.0,85274.0,0.46]
[1766110499916,0.00588,85282.0,85275.0,0.14673]
[1766110501708,0.00588,85282.0,85274.0,0.46]
[1766110501910,0.00588,85282.0,85275.0,0.14673]
[1766110503709,0.00017581,85295.0,85275.0,0.14673]
[1766110503908,0.2063846,85310.0,85284.0,0.0117318]
[1766110504117,0.00588,85309.0,85285.0,0.15171]
[1766110504824,0.0117294,85303.0,85289.0,0.14583]
[1766110505019,0.0117297,85301.0,85289.0,0.14583]
[1766110505321,0.00588,85302.0,85289.0,0.14583]
[1766110505513,0.00588,85302.0,85289.0,0.1575611]
[1766110505707,0.00452,85301.0,85289.0,0.14583]
[1766110507616,0.00017581,85306.0,85298.0,0.14583]
[1766110507806,0.2063846,85320.0,85298.0,0.14583]
[1766110508008,0.2063846,85310.0,85296.0,0.00588]
[1766110508206,0.0117296,85302.0,85296.0,0.00588]
[1766110508416,0.2063846,85306.0,85292.0,0.00588]
[1766110508614,0.2063846,85302.0,85292.0,0.00588]
[1766110508813,0.00588,85301.0,85289.0,0.00588]
[1766110509213,0.00588,85301.0,85290.0,0.14583]
[1766110510014,0.0117292,85304.0,85290.0,0.14583]
[1766110510015,0.00017581,85306.0,85294.0,0.0117305]
[1766110510218,0.0117277,85315.0,85300.0,0.14583]
[1766110510520,0.00588,85314.0,85300.0,0.14583]
[1766110511118,0.00588,85313.0,85300.0,0.14583]
[1766110511323,0.0117283,85311.0,85300.0,0.14583]
[1766110511523,0.13775,85307.0,85298.0,0.00605581]
[1766110511725,0.0117292,85305.0,85298.0,0.00605581]
[1766110512021,0.0117286,85309.0,85298.0,0.00605581]
[1766110512724,0.0117288,85307.0,85298.0,0.00605581]
[1766110513124,0.2063846,85310.0,85298.0,0.00605581]
[1766110513424,0.00011659,85315.0,85298.0,0.00605581]
[1766110513425,0.15004,85314.0,85298.0,0.15180581]
[1766110513624,0.14416,85312.0,85298.0,0.15180581]
[1766110513923,0.0117296,85302.0,85299.0,0.00588]
[1766110514114,0.14416,85309.0,85298.0,1e-08]
[1766110514310,0.0117292,85304.0,85298.0,1e-08]
[1766110518614,0.0117295,85302.0,85298.0,1e-08]
[1766110519232,0.0117292,85305.0,85298.0,1e-08]
[1766110519820,0.0117294,85303.0,85298.0,1e-08]
[1766110521334,0.1528294,85303.0,85298.0,1e-08]
[1766110522032,0.0117294,85303.0,85298.0,1e-08]
[1766110522426,0.1520794,85303.0,85298.0,1e-08]
[1766110523030,0.1520805,85295.0,85281.0,0.14575]
[1766110523225,0.1520805,85295.0,85282.0,0.15163]
[1766110523526,0.0117301,85298.0,85282.0,0.15163]
[1766110523728,0.20638665,85300.0,85284.0,0.14575]
[1766110524039,0.00017581,85301.0,85291.0,0.14575]
[1766110524242,0.00017581,85301.0,85291.0,0.15163]
[1766110524546,0.00017581,85301.0,85292.0,0.0117308]
[1766110524838,0.00588,85308.0,85298.0,0.01173]
[1766110525026,0.00588,85314.0,85304.0,0.14575]
[1766110525733,0.00588,85314.0,85304.0,0.1574791]
[1766110525931,0.14052,85327.0,85304.0,0.1574791]
[1766110525932,0.20638665,85330.0,85313.0,0.14575]
[1766110526134,0.0117252,85333.0,85315.0,0.14575]
[1766110526337,0.00588,85332.0,85317.0,0.14575]
[1766110526639,0.14252364,85338.0,85317.0,0.15163]
[1766110526640,0.00588,85331.0,85317.0,0.15163]
[1766110526941,0.20638665,85330.0,85317.0,0.15163]
[1766110527239,0.21226665,85330.0,85317.0,0.15163]
[1766110528131,0.20638665,85330.0,85317.0,0.1633573]
[1766110528329,0.14018,85336.0,85317.0,0.1633573]
[1766110528330,0.00588,85329.0,85317.0,0.1633573]
[1766110528531,0.0117247,85337.0,85320.0,0.14575]
[1766110528735,0.00234364,85338.0,85322.0,0.14575]
[1766110528930,0.00588,85337.0,85328.0,0.14575]
[1766110529241,0.00354,85337.0,85328.0,0.14575]
[1766110529925,0.00234364,85338.0,85328.0,0.14575]
[1766110530128,0.00822364,85338.0,85328.0,0.14575]
[1766110534040,0.00234364,85338.0,85328.0,0.14575]
[1766110535041,0.01406824,85338.0,85328.0,0.14575]
[1766110535237,0.15958824,85338.0,85327.0,0.00588]
[1766110536028,0.01406824,85338.0,85327.0,0.15163]
[1766110536836,0.14787364,85338.0,85327.0,0.00588]
[1766110537037,0.0117253,85333.0,85327.0,0.00588]
[1766110537431,0.0117249,85336.0,85327.0,0.00588]
[1766110538040,0.1572549,85336.0,85327.0,0.00588]
[1766110539042,0.00234364,85338.0,85327.0,0.15163]
[1766110539725,0.14760364,85338.0,85327.0,0.15163]
[1766110540040,0.0117247,85337.0,85327.0,0.15163]
[1766110541633,0.14760364,85338.0,85327.0,0.15163]
[1766110541831,0.20638665,85350.0,85334.0,0.14575]
[1766110542138,0.00588,85349.0,85334.0,0.14575]
[1766110542733,0.15077,85349.0,85334.0,0.14575]
[1766110542940,0.0117237,85344.0,85334.0,0.14575]
[1766110543144,0.00588,85343.0,85334.0,0.14575]
[1766110543735,0.0176038,85343.0,85334.0,0.14575]
[1766110545447,0.00588,85343.0,85334.0,0.14575]
[1766110545739,0.00588,85343.0,85333.0,0.00017581]
[1766110545740,0.15075,85343.0,85333.0,0.00017581]
[1766110546439,0.00588,85343.0,85333.0,0.00017581]
[1766110547339,0.0176038,85343.0,85333.0,0.00017581]
[1766110547540,0.15057,85343.0,85333.0,0.00017581]
[1766110547736,0.0117245,85339.0,85332.0,2.87e-06]
[1766110547935,0.0117247,85337.0,85332.0,2.87e-06]
[1766110548132,0.011725,85335.0,85328.0,0.00588]
[1766110549338,0.14417,85337.0,85328.0,0.00588]
[1766110549845,0.0176046,85338.0,85328.0,0.00588]
[1766110551449,0.0176046,85338.0,85328.0,0.15531]
[1766110553543,0.0117248,85336.0,85328.0,0.15531]
[1766110553946,0.00588,85338.0,85328.0,0.15531]
[1766110555050,0.00588,85338.0,85328.0,0.00588]
[1766110556045,0.0117246,85337.0,85328.0,0.00588]
[1766110556855,0.00588,85338.0,85328.0,0.15531]
[1766110557454,0.00588,85337.0,85328.0,0.15531]
[1766110559858,0.00588,85336.0,85328.0,0.15531]
[1766110562153,0.14924,85336.0,85328.0,0.00588]
[1766110562458,0.14336,85331.0,85325.0,0.00588]
[1766110562851,0.0176054,85332.0,85323.0,0.00017581]
[1766110563058,0.00588,85332.0,85323.0,0.00017581]
[1766110563654,0.00588,85332.0,85323.0,0.14701581]
[1766110565068,0.0117255,85331.0,85323.0,0.14701581]
[1766110566054,0.0117258,85329.0,85323.0,0.00017581]
[1766110566750,0.14836,85332.0,85323.0,0.00017581]
[1766110567153,0.14248,85322.0,85304.0,0.14684]
[1766110567354,0.0117287,85308.0,85299.0,0.00588]
[1766110567948,0.0117287,85308.0,85286.0,2.46312]
[1766110567949,0.0117299,85299.0,85287.0,0.14684]
[1766110568259,0.20638665,85300.0,85288.0,0.00588]
[1766110568444,0.20638665,85300.0,85288.0,0.15272]
[1766110568651,0.00605581,85302.0,85288.0,0.15272]
[1766110570253,0.011728,85313.0,85292.0,0.14684]
[1766110570559,0.21811505,85310.0,85294.0,0.14684]
[1766110571258,0.1515494,85303.0,85293.0,0.00605581]
[1766110571459,0.20638665,85304.0,85291.0,0.00588]
[1766110571460,0.1515496,85301.0,85291.0,0.00588]
[1766110571661,0.20638665,85301.0,85291.0,0.00588]
[1766110571845,0.00588,85302.0,85291.0,0.15272]
[1766110572045,0.00588,85301.0,85291.0,0.15272]
[1766110572756,0.0117286,85309.0,85291.0,0.15272]
[1766110572957,0.00588,85308.0,85291.0,0.15272]
[1766110573151,0.0117286,85309.0,85291.0,0.15272]
[1766110573357,0.00588,85308.0,85291.0,0.15272]
[1766110573864,0.00588,85307.0,85293.0,0.14542]
[1766110574173,0.01190411,85311.0,85295.0,0.14542]
[1766110574464,0.00588,85310.0,85295.0,0.14542]
[1766110575256,0.20638665,85320.0,85294.0,0.00588]
[1766110575257,0.0117274,85317.0,85297.0,0.14542]
[1766110575462,0.00588,85316.0,85301.0,0.14542]
[1766110575655,0.00588,85315.0,85301.0,0.14542]
[1766110576160,0.00588,85319.0,85308.0,0.14542]
[1766110576356,0.00534,85320.0,85311.0,0.14542]
[1766110576664,0.00588,85321.0,85311.0,0.14542]
[1766110580773,0.1508675,85317.0,85309.0,0.00588]
[1766110581372,0.0117278,85315.0,85309.0,0.00588]
[1766110582168,0.011728,85313.0,85306.0,0.00588]
[1766110582467,0.0117284,85311.0,85305.0,0.00605581]
[1766110582666,0.13914,85311.0,85296.0,0.14542]
[1766110582969,0.150869,85306.0,85297.0,0.00588]
[1766110583169,0.0117295,85302.0,85292.0,0.00588]
[1766110583566,0.00588,85303.0,85292.0,0.00588]
[1766110583867,0.00588,85303.0,85292.0,0.1513]
[1766110589779,0.00588,85303.0,85294.0,0.14542]
[1766110592986,0.00588,85303.0,85295.0,0.00588]
[1766110593185,0.00588,85303.0,85296.0,0.14542]
[1766110595786,0.00588,85303.0,85295.0,0.00588]
[1766110595787,0.0176093,85303.0,85295.0,0.00588]
[1766110596687,0.00588,85303.0,85295.0,0.00588]
[1766110597596,0.00588,85303.0,85295.0,0.1513]
[1766110599089,0.13914,85302.0,85295.0,0.00588]
[1766110599593,0.00588,85303.0,85295.0,0.00588]
[1766110600888,0.00588,85303.0,85295.0,0.1513]
[1766110601194,0.00588,85303.0,85295.0,0.14542]
[1766110602694,0.00588,85309.0,85295.0,0.14542]
[1766110602897,0.00292,85308.0,85295.0,0.1513]
[1766110604697,0.2062917,85320.0,85295.0,0.1513]
[1766110604698,0.0117275,85316.0,85295.0,0.1513]
[1766110604898,0.0117281,85312.0,85298.0,0.14848]
[1766110607005,0.0176077,85315.0,85298.0,0.14848]
[1766110607201,0.0117274,85318.0,85300.0,0.14848]
[1766110607504,0.0117264,85325.0,85305.0,0.011729]
[1766110607689,0.00588,85324.0,85308.0,0.14848]
[1766110607891,0.0176065,85324.0,85308.0,0.14848]
[1766110608100,0.0117271,85320.0,85308.0,0.14848]
[1766110608697,0.00588,85319.0,85308.0,0.14848]
[1766110609009,0.0117273,85318.0,85308.0,0.14848]
[1766110610005,0.00588,85319.0,85308.0,0.14848]
[1766110612813,0.0176072,85319.0,85308.0,0.14848]
[1766110614414,0.0117275,85317.0,85308.0,0.14848]
[1766110615612,0.00588,85325.0,85310.0,0.14848]
[1766110615812,0.2062917,85330.0,85310.0,0.15436]
[1766110616010,0.00588,85329.0,85310.0,0.15436]
[1766110616212,0.0117266,85323.0,85310.0,0.15436]
[1766110616409,0.00588,85322.0,85310.0,0.15436]
[1766110616610,0.00588,85321.0,85310.0,0.15436]
[1766110617419,0.2062917,85330.0,85310.0,0.15436]
[1766110617614,0.00588,85329.0,85310.0,0.15436]
[1766110618314,0.00588,85328.0,85310.0,0.1660883]
[1766110621022,0.00588,85329.0,85313.0,0.14848]
[1766110621221,0.00324,85329.0,85315.0,0.14848]
[1766110621616,0.0117261,85327.0,85315.0,0.14848]
[1766110622025,0.0117264,85325.0,85315.0,0.14848]
[1766110622420,0.011726,85328.0,85315.0,0.14848]
[1766110622819,0.0117262,85326.0,85315.0,0.14848]
[1766110623021,0.00588,85329.0,85314.0,0.00588]
[1766110623022,0.15082,85329.0,85314.0,0.00588]
[1766110623220,0.14494,85327.0,85314.0,0.15138]
[1766110623925,0.011727,85320.0,85314.0,0.15138]
[1766110624119,0.0117267,85323.0,85314.0,0.15138]
[1766110624317,0.00588,85329.0,85314.0,0.15138]
[1766110624520,0.011726,85327.0,85316.0,0.1455]
[1766110624724,0.00588,85329.0,85318.0,0.1455]
[1766110625021,0.00588,85328.0,85318.0,0.1455]
[1766110625815,0.0176059,85328.0,85318.0,0.1455]
[1766110626012,0.0117262,85326.0,85318.0,0.1455]
[1766110626423,0.00588,85328.0,85318.0,0.1455]
[1766110626628,0.00588,85327.0,85318.0,0.1455]
[1766110626825,2.5279766,85346.0,85317.0,0.00588]
[1766110626826,0.14494,85346.0,85320.0,0.1455]
[1766110627124,0.0117221,85356.0,85310.0,0.2062917]
[1766110627125,0.00588,85337.0,85322.0,0.1455]
[1766110627425,0.14494,85348.0,85324.0,0.1455]
[1766110627622,0.0117243,85340.0,85328.0,0.1455]
[1766110627826,0.00588,85339.0,85328.0,0.15138]
[1766110628023,0.0176045,85339.0,85328.0,0.15138]
[1766110628415,0.0117247,85337.0,85328.0,0.15138]
[1766110629515,0.00588,85339.0,85328.0,0.15138]
[1766110630331,0.0117251,85334.0,85328.0,0.15138]
[1766110630834,0.0117257,85330.0,85328.0,0.00588]
[1766110631132,0.0117257,85330.0,85325.0,0.00588]
[1766110631322,0.14494,85338.0,85325.0,0.00588]
[1766110632022,0.0117258,85329.0,85325.0,0.00588]
[1766110632429,0.0117254,85332.0,85325.0,0.00588]
[1766110632819,0.011725,85335.0,85325.0,0.14689]
[1766110633826,0.0117253,85333.0,85325.0,0.14689]
[1766110637641,0.0117255,85331.0,85325.0,0.14689]
[1766110638231,0.0117252,85334.0,85325.0,0.14689]
[1766110638643,0.00588,85339.0,85325.0,0.14689]
[1766110640342,0.0117249,85336.0,85325.0,0.14689]
[1766110640540,0.00588,85336.0,85327.0,0.14101]
[1766110640732,0.00588,85338.0,85329.0,0.14101]
[1766110642147,0.0117259,85329.0,85321.0,0.00017581]
[1766110642444,0.0117263,85326.0,85321.0,0.00017581]
[1766110642644,0.0117263,85326.0,85322.0,0.00588]
[1766110642835,0.0117265,85324.0,85322.0,0.00588]
[1766110643035,0.0117261,85327.0,85322.0,0.00588]
[1766110643746,0.0117263,85325.0,85321.0,0.00588001]
[1766110647451,0.011726,85328.0,85321.0,0.00588001]
[1766110647854,0.0117262,85326.0,85321.0,0.00588001]
[1766110648241,0.0117258,85329.0,85321.0,0.00588001]
[1766110649046,0.0117256,85330.0,85321.0,0.00588001]
[1766110650345,0.0117259,85328.0,85321.0,0.00588001]
[1766110652940,0.011726,85327.0,85321.0,0.00588001]
[1766110654250,0.0117263,85325.0,85321.0,0.00588001]
[1766110655346,0.0117263,85325.0,85316.0,0.00588]
[1766110655551,0.1551763,85325.0,85316.0,0.00588]
[1766110656754,0.14345,85325.0,85316.0,0.00588]
[1766110657355,0.011726,85327.0,85316.0,0.00588]
[1766110659647,0.0117263,85325.0,85316.0,0.00588]
[1766110660648,0.00588,85328.0,85316.0,0.00588]
[1766110660955,0.14345,85327.0,85316.0,0.00588]
[1766110663547,0.00588,85328.0,85316.0,0.00588]
[1766110663946,0.14294,85328.0,85316.0,0.00588]
[1766110665956,0.00588,85328.0,85319.0,0.0117271]
[1766110666262,0.011722,85356.0,85316.0,0.00588]
[1766110666263,0.011724,85342.0,85318.0,0.20624477]
[1766110666444,0.00588,85341.0,85318.0,0.20624477]
[1766110666649,0.00588,85340.0,85320.0,0.20624477]
[1766110666960,0.13706,85345.0,85320.0,0.20624477]
[1766110667161,0.00588,85344.0,85332.0,0.0117252]
[1766110667362,0.13706,85349.0,85334.0,0.0117249]
[1766110667659,0.00588,85348.0,85331.0,0.0117254]
[1766110667970,0.00588,85347.0,85331.0,0.0117254]
[1766110668257,0.00588,85346.0,85331.0,0.0117254]
[1766110668459,0.13706,85349.0,85331.0,0.0117254]
[1766110668655,0.13706,85347.0,85330.0,0.20624477]
[1766110669553,0.1487834,85346.0,85330.0,0.21212477]
[1766110670762,0.13706,85346.0,85330.0,0.22385037]
[1766110672361,0.00588,85345.0,85330.0,0.22385037]
[1766110672551,0.00588,85345.0,85332.0,0.0117253]
[1766110674352,0.00588,85345.0,85330.0,0.21212477]
[1766110674353,0.00588,85345.0,85330.0,0.00588]
[1766110674562,0.13706,85344.0,85330.0,0.21212477]
[1766110674758,0.13706,85342.0,85330.0,0.00588]
[1766110674951,0.00588,85341.0,85330.0,0.00588]
[1766110678663,0.00588,85341.0,85330.0,0.21212477]
[1766110680057,0.00588,85341.0,85330.0,0.22385037]
[1766110681469,0.00588,85341.0,85330.0,0.21212477]
[1766110682760,0.00588,85341.0,85330.0,0.00588]
[1766110682960,0.14134,85341.0,85330.0,0.21212477]
[1766110684658,0.0117242,85340.0,85330.0,0.00588]
[1766110684858,0.13546,85332.0,85328.0,0.00588]
[1766110685054,0.1471861,85327.0,85308.0,2.4748486]
[1766110685265,0.1471861,85327.0,85310.0,0.20624477]
[1766110685456,0.0117263,85325.0,85310.0,0.20624477]
[1766110685659,0.13546,85324.0,85310.0,0.20624477]
[1766110688378,0.14134,85324.0,85310.0,0.20624477]
[1766110688562,0.14134,85324.0,85311.0,0.0117282]
[1766110689075,0.00588,85324.0,85311.0,0.0117282]
[1766110689260,0.00588,85324.0,85310.0,0.20624477]
[1766110689467,0.14134,85324.0,85309.0,0.00588]
[1766110689666,0.1471875,85317.0,85309.0,0.00588]
[1766110689867,0.13546,85315.0,85307.0,0.00588]
[1766110690461,0.00588,85315.0,85307.0,0.00588]
[1766110691671,0.00588,85316.0,85307.0,0.00588]
[1766110692267,0.13546,85323.0,85307.0,0.00588]
[1766110692575,0.00588,85322.0,85308.0,0.0117286]
[1766110692762,0.00017581,85326.0,85313.0,0.0117278]
[1766110693073,0.00588,85330.0,85317.0,0.0117274]
[1766110693273,0.00588,85330.0,85320.0,0.20624477]
[1766110694067,0.00017581,85334.0,85320.0,0.20624477]
[1766110694267,0.00588,85333.0,85321.0,0.0117268]
[1766110694973,0.00588,85333.0,85320.0,0.20624477]
[1766110695378,0.00017581,85334.0,85320.0,0.20624477]
[1766110695581,0.00588,85333.0,85320.0,0.20624477]
[1766110697478,0.00588,85333.0,85319.0,0.0117271]
[1766110699576,0.00017581,85334.0,85319.0,0.0117271]
[1766110699789,0.00588,85332.0,85319.0,0.0117271]
[1766110700575,0.00588,85332.0,85318.0,0.00588]
[1766110700576,0.13647,85330.0,85318.0,0.00588]
[1766110700887,0.011724,85342.0,85318.0,0.00588]
[1766110700888,0.0117184,85383.0,85320.0,0.41248506]
[1766110701079,0.13647,85361.0,85322.0,0.0117267]
[1766110701274,0.00588,85360.0,85340.0,0.0117242]
[1766110701475,0.00588,85360.0,85342.0,0.0117239]
[1766110701978,0.1688568,85421.0,85350.0,0.20624253]
[1766110701979,2.4634,85389.0,85350.0,0.20624253]
[1766110702168,0.00588,85377.0,85351.0,0.00588]
[1766110702684,0.00588,85376.0,85351.0,0.00588]
[1766110702992,0.00588,85376.0,85357.0,0.0117218]
[1766110703180,0.00588,85376.0,85358.0,0.00588]
[1766110703683,0.00588,85375.0,85358.0,0.00588]
[1766110703883,0.00588,85375.0,85358.0,0.00605581]
[1766110704070,0.13881254,85378.0,85358.0,0.00605581]
[1766110704271,0.00588,85377.0,85358.0,0.00605581]
[1766110704467,0.13647,85374.0,85358.0,0.00605581]
[1766110708490,0.00588,85373.0,85358.0,0.00605581]
[1766110708697,0.13647,85372.0,85358.0,0.00605581]
[1766110710987,0.13647,85370.0,85358.0,0.00605581]
[1766110711291,0.13647,85368.0,85358.0,0.00605581]
[1766110712799,0.13647,85368.0,85353.0,0.00456]
[1766110713095,0.13647,85360.0,85347.0,0.00384]
[1766110713299,0.14235,85360.0,85347.0,0.00384]
[1766110714401,0.14235,85360.0,85348.0,0.0117231]
[1766110715293,0.14235,85360.0,85347.0,0.00384]
[1766110715884,0.14235,85360.0,85347.0,0.0155632]
[1766110716387,0.00588,85359.0,85347.0,0.0155632]
[1766110716701,0.0117184,85383.0,85361.0,0.0117213]
[1766110716998,0.0117165,85397.0,85349.0,0.41248506]
[1766110716999,0.00588,85377.0,85363.0,0.011721]
[1766110717200,2.54e-06,85378.0,85368.0,0.0117203]
[1766110717505,0.00588,85387.0,85377.0,0.0117191]
[1766110717693,0.00588,85387.0,85380.0,0.20624253]
[1766110717890,0.00588,85387.0,85377.0,0.0117191]
[1766110718293,0.13647,85374.0,85348.0,2.46252]
[1766110718490,0.1481903,85369.0,85349.0,0.00588]
[1766110718697,0.13647,85366.0,85349.0,0.00588]
[1766110719194,0.13664536,85366.0,85349.0,0.0060557]
[1766110719584,0.00588,85365.0,85349.0,0.0060557]
[1766110720195,0.14235,85365.0,85349.0,0.0060557]
[1766110721603,0.13647,85365.0,85349.0,0.0060557]
[1766110721901,0.00588,85366.0,85350.0,0.20624253]
[1766110722289,0.00588,85368.0,85354.0,0.0117222]
[1766110722491,0.13647,85382.0,85358.0,0.20624253]
[1766110722803,0.1495688,85380.0,85361.0,0.0001757]
[1766110723187,0.0117191,85378.0,85361.0,0.0001757]
[1766110723399,0.0117196,85374.0,85361.0,0.0001757]
[1766110723598,0.00588,85373.0,85361.0,0.0001757]
[1766110724302,0.00588,85373.0,85361.0,0.0060557]
[1766110726307,0.14373,85373.0,85361.0,0.0060557]
[1766110727307,0.13785,85371.0,85348.0,2.46252]
[1766110727618,0.13785,85364.0,85345.0,0.0117235]
[1766110727904,0.13785,85364.0,85346.0,2.46816]
[1766110728105,0.13785,85364.0,85347.0,0.0117233]
[1766110728506,0.1380257,85364.0,85350.0,0.20624253]
[1766110730302,0.1380257,85364.0,85347.0,0.011899]
[1766110731312,0.1380257,85364.0,85347.0,0.0001757]
[1766110732206,0.0117211,85363.0,85347.0,0.0001757]
[1766110732796,0.13785,85361.0,85348.0,0.00588]
[1766110733800,0.0117217,85359.0,85348.0,0.00588]
[1766110734120,0.0117216,85360.0,85348.0,0.00588]
[1766110734703,0.13785,85361.0,85348.0,0.00588]
[1766110734907,0.00588,85360.0,85348.0,0.00588]
[1766110737413,0.14373,85360.0,85348.0,0.00588]
[1766110739315,0.13785,85363.0,85350.0,0.20624253]
[1766110739804,0.1495711,85363.0,85350.0,0.20624253]
[1766110740004,0.1495711,85363.0,85348.0,0.00588]
[1766110740402,0.13785,85351.0,85331.0,2.46224]
[1766110740605,0.0117218,85358.0,85339.0,0.00588]
[1766110740914,0.00588,85361.0,85339.0,0.00588]
[1766110741116,0.0117221,85356.0,85339.0,0.00588]
[1766110741300,0.00192,85355.0,85343.0,0.13042]